Cogmind - Beta 17 @@@ ROGUE MODE // 2026.08.10 @ 22:41:26 Player: Dadrick Result: Destroyed by G-67 Veteran with Field Laser Performance ------------- Evolutions (6) 3000 Regions Visited (16) 3200 Robots Destroyed (242) 1210 Value Destroyed (7715) 7715 Prototype IDs (51) 1020 Alien Tech Used (3) 600 Bonus (959) 959 TOTAL SCORE: 17704 Bonus ------- High Alert Combat Kills 558 Follower Combat Kills 67 Met Data Miner 300 Met Zhirov 300 Friendly Fire -266 Cogmind --------- Core Integrity 0/1150 Matter 280/300 Energy 100/100 System Corruption 23% Temperature Cool (0) Movement Core (100) Ox1 Location -4/Factory Parts ------- > --- POWER (2) -------- (None) > --- PROPULSION (5) --- (None) > --- UTILITY (9) ------ (None) > --- WEAPON (4) ------- Phasing Sabre > --- INVENTORY (5) ---- Advanced Energy Well (500) Improved Terrain Scanner Improved Hacking Suite Improved Trap Extractor (6/6 Fire) Peak State ------------ > --- POWER ------------ Neutrino Core Fission-Momentum Core > --- PROPULSION ------- Flexi-carbon Leg Enhanced Armored Leg Armored Exoskeleton > --- UTILITY ---------- Armored Scrap Engine Large Storage Unit Improved Sensor Array Improved Signal Interpreter Improved Terrain Scanner Makeshift Terrain Scan Processor Advanced Targeting Computer Transmission Jammer > --- WEAPON ----------- Variable Charge Gun Improved KE Penetrator Shotgun Directed Caster Construct/G Phasing Sabre > --- INVENTORY -------- Light Angular Momentum Engine Flexi-carbon Leg Improved Heat Sink Advanced Energy Well Improved Matter Compressor Improved Sensor Array Advanced Shield Generator High-powered Tractor Beam Improved Trap Extractor Transdimensional Reconstructor Wave Gun Long-range Proton Cannon Missile Launcher Advanced Datajack [Rating: 115] Favorites ----------- Power Constructs Engine Light Deuterium Engine Power Core Constructs Reactor Heavy Antimatter Reactor Propulsion Constructs Treads Light Treads Leg Constructs Wheel Subdweller Monowheel Hover Unit Combat Gravmag System Utility Large Storage Unit Device Armored Scrap Engine Storage Large Storage Unit Processor Improved Signal Interpreter Hackware Improved Hacking Suite Protection Light Armor Plating Weapon Enhanced Autogun Energy Gun Constructs Energy Cannon Constructs Ballistic Gun Enhanced Autogun Launcher Missile Launcher Special Weapon Mining Laser Impact Weapon Hammer Slashing Weapon Power Sword Build | -11 -10 -10 -8 -8 -8 -6 -6 -6 -6 -5 -5 -5 -5 -5 -4 -4 ------- Run | Yrd Mat Sub Mat Sto Rec Fac Low Low Dat Pro Fac Upp Upp Zhi Pro Fac Slots Evolved 12 | . . . 4 . . 4 . . . . 2 . . . . 2 Power 1 | . . . . . . . . . . . 1 . . . . . Propulsion 2 | . . . . . . 2 . . . . . . . . . . Utility 7 | . . . 3 . . 2 . . . . 1 . . . . 1 Weapon 2 | . . . 1 . . . . . . . . . . . . 1 Parts Attached 129 | 8 7 19 28 12 2 9 3 5 . 4 16 2 4 4 . 6 Power 14 | 1 . 3 4 2 . . . . . 1 . . 1 1 . 1 Engine 8 | 1 . 3 1 2 . . . . . . . . . . . 1 Core 5 | . . . 3 . . . . . . 1 . . 1 . . . Reactor 1 | . . . . . . . . . . . . . . 1 . . Propulsion 25 | 2 1 6 6 1 . 2 . 1 . . 5 1 . . . . Treads 14 | 2 1 3 6 1 . 1 . . . . . . . . . . Leg 5 | . . . . . . 1 . 1 . . 2 1 . . . . Wheel 3 | . . 3 . . . . . . . . . . . . . . Hover 3 | . . . . . . . . . . . 3 . . . . . Flight . | . . . . . . . . . . . . . . . . . Utility 47 | 2 2 2 10 4 2 6 2 2 . 1 8 1 1 3 . 1 Device 20 | 1 . . 2 1 1 4 1 2 . 1 3 1 1 1 . 1 Storage 6 | 1 1 . 1 . . . . . . . 2 . . 1 . . Processor 7 | . . . 1 . 1 2 1 . . . 2 . . . . . Hackware 2 | . . . 1 . . . . . . . 1 . . . . . Protection 12 | . 1 2 5 3 . . . . . . . . . 1 . . Artifact . | . . . . . . . . . . . . . . . . . Weapon 43 | 3 4 8 8 5 . 1 1 2 . 2 3 . 2 . . 4 Energy Gun 9 | 2 . 3 2 . . . . . . . 1 . 1 . . . Energy Cannon 1 | . . . . . . . . . . . 1 . . . . . Ballistic Gun 24 | 1 2 4 6 3 . 1 . 2 . 1 1 . . . . 3 Ballistic Cannon . | . . . . . . . . . . . . . . . . . Launcher 5 | . 1 1 . 1 . . . . . 1 . . . . . 1 Special Weapon 1 | . 1 . . . . . . . . . . . . . . . Impact Weapon 1 | . . . . 1 . . . . . . . . . . . . Slashing Weapon 2 | . . . . . . . 1 . . . . . 1 . . . Piercing Weapon . | . . . . . . . . . . . . . . . . . Special Melee Weapon . | . . . . . . . . . . . . . . . . . Unidentified Prototypes 13 | . . . 1 . 1 . 1 . . . 2 . . 5 . 3 Parts Lost 35 | . . 6 6 8 . 2 . . . . 3 . . . . 10 Power 8 | . . 2 1 1 . 1 . . . . 1 . . . . 2 Propulsion 4 | . . 1 . 2 . . . . . . . . . . . 1 Utility 15 | . . 1 4 4 . 1 . . . . . . . . . 5 Weapon 8 | . . 2 1 1 . . . . . . 2 . . . . 2 Highest Loss Streak 8 | . . 2 2 7 . 2 . . . . 2 . . . . 8 To Critical Strikes . | . . . . . . . . . . . . . . . . . Average Backups 13 | 2 7 12 13 13 14 13 14 14 15 14 14 12 14 14 15 14 Power . | . 1 1 1 . . . . 1 1 1 1 1 1 1 1 . Propulsion 2 | . . 2 3 6 6 2 2 1 2 1 2 2 2 2 1 . Utility 5 | . 2 4 5 2 3 6 7 7 8 8 6 5 6 7 8 6 Weapon 4 | 1 4 5 4 4 3 3 3 3 3 2 4 3 4 4 4 3 Tool/Special . | . . . . . . . . . . . . . . . . . Unused Backups 35 | . 2 2 9 1 8 . 1 1 . 2 3 . 1 1 1 3 Power 3 | . . . 2 . . . 1 . . . . . . . . . Propulsion 20 | . 1 . 4 1 8 . . . . 2 2 . . 1 . 1 Utility 8 | . . 2 2 . . . . 1 . . 1 . . . 1 1 Weapon 2 | . 1 . 1 . . . . . . . . . . . . . Tool/Special 2 | . . . . . . . . . . . . . 1 . . 1 Average Slot Usage (%) 85 | . 100 96 89 92 82 79 76 80 78 80 81 75 82 75 83 77 Engine 5 | . 14 10 3 5 8 6 6 6 6 . 2 . . . . . Core 3 | . . . 5 2 . . . . . 5 7 6 10 11 11 9 Treads 8 | . 28 17 18 17 9 5 1 . . . . . . . . . Leg 7 | . . . . . 2 10 11 17 18 18 12 15 16 16 16 13 Wheel 1 | . . 9 . . . . . . . . . . . . . . Device 11 | . 11 11 10 8 9 12 12 12 12 12 10 15 16 14 16 18 Storage 8 | . 14 14 8 9 9 6 6 6 6 6 5 5 5 5 5 4 Processor 11 | . . . 3 9 17 19 19 18 18 18 16 16 16 16 16 14 Protection 2 | . 2 2 12 12 3 . . . . . . . . . . . Energy Gun 4 | . 4 8 6 . . 1 3 6 6 5 . 1 10 5 11 5 Ballistic Gun 13 | . 22 16 17 25 18 12 6 7 6 11 13 9 1 . 4 6 Slashing Weapon 1 | . . . . . . . 1 4 3 . 1 2 3 4 . 3 Peak Build Rating 115 | 7 10 19 49 35 51 59 69 76 76 81 107 98 103 104 103 115 Average Rating 54 | 5 9 13 30 31 40 55 59 75 73 78 97 91 101 96 102 105 On Entrance 58 | . 7 10 17 33 32 50 58 69 76 76 79 93 89 103 103 103 Avg Prop Armor Cover (%) 9 | . . 12 . . . 11 3 . . . 1 . . . . . Naked Turns 22 | . . . . . . . . . . . . . . . . 22 Heaviest Build 111 | 15 32 37 83 47 41 37 36 40 38 51 111 68 61 60 60 66 Greatest Support 116 | 40 40 40 86 42 42 55 85 101 101 101 116 101 94 94 94 94 Greatest Overweight (x) 2 | . . 1 2 1 1 . . . . . 1 . . . . . Average Overweight (x) . | . . . . . . . . . . . . . . . . . Largest Inventory Capacity 25 | 8 15 15 15 15 15 15 15 15 15 15 25 15 15 15 15 15 Average Capacity 14 | 7 9 15 15 15 15 15 15 15 15 15 15 15 15 15 15 14 Most Carried 17 | 3 9 15 15 15 15 15 15 15 15 15 17 15 15 15 15 15 Average Carried 13 | 2 7 14 14 14 14 13 14 14 15 14 14 12 14 14 15 14 Final Capacity 15 | 8 15 15 15 15 15 15 15 15 15 15 15 15 15 15 15 5 Final Carried 15 | 3 9 15 14 14 15 14 14 15 15 15 15 14 15 15 15 4 Scrap Engine Consumption 68 | . . . . . 18 8 6 1 . 4 19 5 1 2 . 4 Constructs Created 6 | . . . . . 3 . . . . . 2 . . . . 1 Constructs Modified 22 | . . . . . 3 3 3 . . 1 7 4 . . . 1 Class Distribution -------------------- 44% | Mutant 17% | Skirmisher 9% | Tank 7% | Gunner 5% | Derelict-Assassin 4% | Scavenger-Mutant 3% | Assassin 3% | Construct 3% | Scavenger-Tank Dominant Class ---------------- Mutant | -10/Materials Mutant | -10/Subcaves Tank | -8/Materials Tank | -8/Storage Mutant | -8/Recycling Mutant | -6/Factory Mutant | -6/Lower Caves Mutant | -6/Lower Caves Mutant | -6/Data Miner Skirmisher | -5/Proximity Caves Skirmisher | -5/Factory Skirmisher | -5/Upper Caves Derelict-Assassin | -5/Upper Caves Assassin | -5/Zhirov Skirmisher | -4/Proximity Caves Derelict-Assassin | -4/Factory Resources | -11 -10 -10 -8 -8 -8 -6 -6 -6 -6 -5 -5 -5 -5 -5 -4 -4 ----------- Run | Yrd Mat Sub Mat Sto Rec Fac Low Low Dat Pro Fac Upp Upp Zhi Pro Fac Matter Collected 7967 | 326 435 779 912 1210 470 281 114 110 . 479 1884 172 102 98 251 344 Remotely 856 | . . . . 568 . . . . . 53 178 . . . 57 . Salvage Created 9665 | 144 451 536 1412 1775 823 472 29 . . 650 2429 120 24 298 210 292 Parts 485 | 11 24 34 81 114 32 21 . . . 22 95 4 2 3 18 24 Haulers Intercepted 13 | . 2 . 4 5 . . . . . . 2 . . . . . Recyclers Shooed 19 | 1 . . 1 . . 2 . . . . 14 . . . . 1 Parts Field Recycled . | . . . . . . . . . . . . . . . . . Retrieved Matter . | . . . . . . . . . . . . . . . . . Parts Self-Destructed 48 | . . 18 . . . . . . . 13 . 1 1 2 13 . Prevented 4 | . . . . . . . . . . . . 4 . . . . Parts Restored . | . . . . . . . . . . . . . . . . . Kills | -11 -10 -10 -8 -8 -8 -6 -6 -6 -6 -5 -5 -5 -5 -5 -4 -4 ------- Run | Yrd Mat Sub Mat Sto Rec Fac Low Low Dat Pro Fac Upp Upp Zhi Pro Fac Combat Hostiles Destroyed 170 | . 10 18 24 29 8 4 . . . 19 36 1 . . 12 9 Guns 117 | . 7 16 22 20 8 4 . . . 9 29 . . . 2 . Cannons 1 | . . . . . . . . . . . 1 . . . . . AOE 49 | . 3 2 2 9 . . . . . 9 5 . . . 10 9 Classes Destroyed 20 | 2 5 1 5 1 . 1 . . . 1 2 . 1 . . 1 Worker 14 | . 1 . 1 6 . 3 . . . . 1 . . . . 2 Builder 9 | . . . 1 3 . 2 . . . . 3 . . . . . Tunneler 4 | 4 . . . . . . . . . . . . . . . . Hauler 13 | . 2 . 4 5 . . . . . . 2 . . . . . Recycler 18 | 1 2 . 2 1 4 1 . . . . 7 . . . . . Minesweeper 1 | . . . . . . . . . . . . . 1 . . . Mechanic 3 | . . . 1 2 . . . . . . . . . . . . Operator 2 | . . . 1 . . . . . . . 1 . . . . . Drone 1 | . . . . . . . . . . 1 . . . . . . Watcher 7 | . 1 . 1 2 . . . . . . 3 . . . . . Swarmer 52 | . 9 3 4 . . . . . . 9 13 . . . 10 4 Cutter 3 | . . . . . . . . . . . . . . . . 3 Grunt 56 | . 1 1 14 17 1 3 . . . 6 13 . . . . . Brawler 8 | . . . 1 3 . . . . . 2 1 . . . . 1 Duelist 1 | . . . . 1 . . . . . . . . . . . . Sentry 18 | . . . 5 8 3 . . . . 1 1 . . . . . Specialist 2 | . . . . . . . . . . . 2 . . . . . Hunter 5 | . . . . . . . . . . . 4 1 . . . . Programmer 6 | . . . . . . 1 . . . . 2 . . . 2 1 Subdweller 18 | . . 14 . . 4 . . . . . . . . . . . Savage 1 | . . . . . . . . . . . . 1 . . . . Best Kill Streak 11 | 4 5 3 4 11 2 3 . . . 5 11 1 1 . 10 4 Combat Bots Only 10 | . 4 3 4 7 1 3 . . . 5 7 1 . . 10 4 Max Kills in Single Turn 4 | 1 3 2 2 2 1 1 . . . 4 3 1 1 . 4 4 Gunslinging 1 | . . 1 1 1 . . . . . . 1 . . . . . Exploded 4 | . 3 1 1 1 . . . . . 4 2 . . . 4 4 Melee . | . . . . . . . . . . . . . . . . . Uniques/NPCs Destroyed . | . . . . . . . . . . . . . . . . . Combat | -11 -10 -10 -8 -8 -8 -6 -6 -6 -6 -5 -5 -5 -5 -5 -4 -4 -------- Run | Yrd Mat Sub Mat Sto Rec Fac Low Low Dat Pro Fac Upp Upp Zhi Pro Fac Hostile Shots Fired 979 | . 64 104 141 184 6 17 . 10 . 52 218 20 . . 48 115 Missed 287 | . 16 33 41 46 1 4 . 7 . 23 60 6 . . 23 27 Hits 692 | . 48 71 100 138 5 13 . 3 . 29 158 14 . . 25 88 Melee 58 | . . . 2 4 . 6 . . . . 1 . . . . 45 Projectile 634 | . 48 71 98 134 5 7 . 3 . 29 157 14 . . 25 43 AOE 2 | . . . . . . . . . . . . . . . . 2 Critical Strikes 56 | . . 2 2 16 1 4 . 1 . 3 6 . . . . 21 Part Disruptions 1 | . . . . . . . . . . . . . . . 1 . Damage Taken 13020 | . 407 1425 1527 2445 86 383 . 57 . 518 2407 217 . . 439 3109 Core 2113 | . 38 104 54 355 21 74 . . . 67 246 13 . . 38 1103 Absorbed by Shields 548 | . . . . . . . . . . . 357 53 . . . 138 Regen/Repaired (Parts) 1380 | . . . . . 5 109 . 14 . 151 480 403 100 100 . 18 Core Remaining (%) 63 | 100 . 43 . . 21 . . . . 83 . . . . 70 . Volleys Fired 581 | 17 39 113 94 87 25 19 . . . 28 102 14 5 . 24 14 Largest 4 | 2 2 2 3 3 3 3 . . . 3 3 3 1 . 3 4 Hottest 225 | 80 100 100 138 75 75 82 . . . 92 87 150 225 . 154 163 Shots Fired 1297 | 18 76 171 257 220 64 48 . . . 74 267 23 5 . 42 32 Gun 1170 | 18 74 124 249 201 64 42 . . . 69 253 14 5 . 38 19 Cannon 32 | . . . . . . 6 . . . . 7 9 . . . 10 Launcher 46 | . 1 3 4 19 . . . . . 5 7 . . . 4 3 Special 49 | . 1 44 4 . . . . . . . . . . . . . Kinetic 1007 | 16 74 93 172 202 61 47 . . . 46 253 9 . . 10 24 Thermal 232 | . 1 78 85 . 3 1 . . . 23 . 5 5 . 28 3 Explosive 38 | . 1 . . 18 . . . . . 5 7 . . . 4 3 Electromagnetic 20 | 2 . . . . . . . . . . 7 9 . . . 2 Robot Hit Streak 26 | 4 11 25 14 13 14 13 . . . 20 26 10 . . 9 9 Robot Miss Streak 7 | 2 7 3 4 4 1 2 . . . 6 6 5 . . 3 3 Penetration Max 2 | . . . . . . . . . . 2 2 . . . . . Secondary Targets 27 | . 2 2 6 4 . 1 . . . 5 7 . . . . . Max Gunslinging Chain 1 | . 1 1 1 1 . 1 . . . 1 1 . . . . . Shots Hit Robots 827 | 11 41 93 153 138 45 41 2 . . 56 184 12 1 6 25 19 Core Hits 499 | 6 17 30 60 87 21 18 2 . . 57 159 6 1 4 14 17 Critical Kills 5 | . . . 1 . . . . . . 2 2 . . . . . Critical Parts Destroyed 8 | . . . 3 2 . . . . . 2 1 . . . . . Critical Strikes 17 | . . . 8 2 . . . . . 4 3 . . . . . Burn 4 | . . . 4 . . . . . . . . . . . . . Destroy 12 | . . . 4 1 . . . . . 4 3 . . . . . Smash 1 | . . . . 1 . . . . . . . . . . . . Melee Attacks 80 | . . . . 7 2 9 15 3 . . 19 9 4 6 . 6 Impact 32 | . . . . 7 2 9 14 . . . . . . . . . Slashing 48 | . . . . . . . 1 3 . . 19 9 4 6 . 6 Piercing . | . . . . . . . . . . . . . . . . . Sneak Attacks 12 | . . . . 1 1 4 . . . . 4 . 1 . . 1 Combat Hostiles . | . . . . . . . . . . . . . . . . . Follow-up Attacks . | . . . . . . . . . . . . . . . . . Damage Inflicted 24000 | 141 829 1887 3166 4100 848 831 134 . . 1869 6353 315 62 483 1254 1728 Guns 15396 | 141 730 1654 2732 2307 773 519 . . . 1284 4266 166 . . 497 327 Cannons 596 | . . . . . . 92 . . . . 181 149 . . . 174 Explosions 6540 | . 99 233 434 1725 . . . . . 585 1574 . . . 757 1133 Melee 1461 | . . . . 66 75 220 134 . . . 332 . 62 483 . 89 Ramming 7 | . . . . 2 . . . . . . . . . . . 5 Kinetic 14426 | 129 730 1476 2219 2564 755 611 . . . 932 4266 118 . . 184 442 Thermal 2283 | . . 411 947 . 18 . . . . 352 194 48 . . 313 . Explosive 5422 | . 99 . . 1468 . . . . . 585 1380 . . . 757 1133 Electromagnetic 401 | 12 . . . . . . . . . . 181 149 . . . 59 Impact 495 | . . . . 66 75 220 134 . . . . . . . . . Slashing 966 | . . . . . . . . . . . 332 . 62 483 . 89 Piercing . | . . . . . . . . . . . . . . . . . Highest Corruption 23 | . . . 1 2 2 . . . . . 5 5 5 5 7 23 Average Corruption 3 | . . . 1 1 2 . . . . . 4 5 5 5 5 5 Corruption Purged . | . . . . . . . . . . . . . . . . . Corruption Blocked . | . . . . . . . . . . . . . . . . . Effects 155 | . . . 8 10 26 . . . . . 25 22 19 8 18 19 Message Errors 33 | . . . 3 4 5 . . . . . 4 7 3 1 4 2 Matter Fused 42 | . . . 2 3 7 . . . . . 4 3 4 5 5 9 Heat Flow Errors 15 | . . . . . 3 . . . . . 2 4 4 1 . 1 Energy Discharges 18 | . . . 1 1 2 . . . . . 2 1 5 . 3 3 Parts Rejected 1 | . . . . . . . . . . . 1 . . . . . Parts Fused 3 | . . . . . . . . . . . 1 2 . . . . Data Loss (minor) 22 | . . . . 2 5 . . . . . 5 2 2 1 3 2 Data Loss (major) 7 | . . . 2 . 2 . . . . . . 1 1 . 1 . Misfires 4 | . . . . . . . . . . . 2 1 . . 1 . Alerts 2 | . . . . . 1 . . . . . . 1 . . . . Misdirections 2 | . . . . . . . . . . . . . . . . 2 Weapon Failures 6 | . . . . . 1 . . . . . 4 . . . 1 . Overload Shots 1 | . . . . . . . . . . . . . 1 . . . Overflow Damage 730 | . . . . 74 . 107 . . . . 218 . . 132 54 145 Projectiles 1 | . . . . . . . . . . . 1 . . . . . Explosions 256 | . . . . 8 . . . . . . 98 . . . 54 96 Melee 473 | . . . . 66 . 107 . . . . 119 . . 132 . 49 Knockbacks 4 | . . . . . . 4 . . . . . . . . . . Impact . | . . . . . . . . . . . . . . . . . Kinetic 4 | . . . . . . 4 . . . . . . . . . . Secondary . | . . . . . . . . . . . . . . . . . Self-Inflicted Damage 595 | . . 4 . 236 . . . . . . 25 . . . . 330 Shots 13 | . . 1 . 6 . . . . . . 1 . . . . 5 Rammed 3 | . . . . 1 . . . . . . . . . . . 2 Targets Rammed 3 | . . . . 1 . . . . . . . . . . . 2 Kicked . | . . . . . . . . . . . . . . . . . Crushed . | . . . . . . . . . . . . . . . . . Highest Temperature 422 | 18 57 1 422 391 263 72 . 2 . 93 252 302 180 276 255 127 Average Temperature 80 | 12 16 1 109 117 57 32 . 2 . 34 64 114 69 141 103 37 Received Heat Transfer 3170 | . 24 237 702 1305 51 72 . 45 . 198 374 . . . . 162 Effects 6 | . . . . 4 . . . . . . . 2 . . . . Energy Bleed 4 | . . . . 2 . . . . . . . 2 . . . . Interference 2 | . . . . 2 . . . . . . . . . . . . Siege Activations . | . . . . . . . . . . . . . . . . . Martial Activations . | . . . . . . . . . . . . . . . . . Shielding Activations . | . . . . . . . . . . . . . . . . . Robots Disrupted . | . . . . . . . . . . . . . . . . . Combat Hostiles . | . . . . . . . . . . . . . . . . . Robots Corrupted 4 | . . . . . . 2 . . . . 1 1 . . . . Combat Hostiles 2 | . . . . . . . . . . . 1 1 . . . . Parts Fried 9 | . . . . . . 6 . . . . 2 1 . . . . Impact Corruptions 7 | . . . . 2 . 5 . . . . . . . . . . Robots Melted 1 | . . . . . . . . . . 1 . . . . . . Combat Hostiles 1 | . . . . . . . . . . 1 . . . . . . Parts Melted 5 | . . 1 1 . 1 . . . . . . . . . 2 . Heat Transferred 5425 | . . 500 1810 . 25 . . . . 2257 150 74 . . 609 . Parts Sabotaged . | . . . . . . . . . . . . . . . . . Parts Stolen . | . . . . . . . . . . . . . . . . . Parts Stripped . | . . . . . . . . . . . . . . . . . Power Chain Reactions . | . . . . . . . . . . . . . . . . . Alert | -11 -10 -10 -8 -8 -8 -6 -6 -6 -6 -5 -5 -5 -5 -5 -4 -4 ------- Run | Yrd Mat Sub Mat Sto Rec Fac Low Low Dat Pro Fac Upp Upp Zhi Pro Fac Maximum Alert Level 4 | . . . 1 3 1 2 . . . . 4 . . . . 1 Low Security (%) 62 | 100 100 . 78 29 88 49 . . . . . . . . . 99 Level 1 21 | . . . 21 7 11 47 . . . . 50 . . . . . Level 2 11 | . . . . 55 . 2 . . . . 28 . . . . . Level 3 4 | . . . . 7 . . . . . . 17 . . . . . Level 4 . | . . . . . . . . . . . 3 . . . . . Level 5 . | . . . . . . . . . . . . . . . . . High Security . | . . . . . . . . . . . . . . . . . Max Security . | . . . . . . . . . . . . . . . . . Peak Influence 1128 | 5 170 . 304 723 337 400 . . . . 1128 . . . . 247 Initial 460 | . . . 43 126 272 400 . . . . 460 . . . . 61 Average 218 | 1 73 . 124 448 91 246 . . . . 499 . . . . 25 Influence Increases 6597 | 25 341 110 731 1051 398 598 . 105 . 405 2063 45 5 10 270 440 Destroy 0b10 Robot/C 3040 | . 200 80 480 580 80 100 . . . 360 720 20 . . 240 180 Destroy 0b10 Robot/NC 380 | 25 30 . 55 95 30 30 . . . 5 85 . 5 10 . 10 Destroy Leader 580 | . 46 . 130 164 . 20 . . . 40 120 10 . . 30 20 Allied During Kill 15 | . . . . . 14 1 . . . . . . . . . . Successful Hack 114 | . 5 . 7 6 32 14 . . . . 34 . . . . 16 Select Force Hacks 240 | . . . . . 240 . . . . . . . . . . . Disable Machine 495 | . . . 15 105 . 30 . . . . 255 . . . . 90 Destroy Structure 523 | . 15 . 44 101 2 3 . . . . 234 . . . . 124 Advance Influence 850 | . . . . . . 400 . . . . 450 . . . . . Lose Combat Pursuer 360 | . 45 30 . . . . . 105 . . 165 15 . . . . Influence Decreases 6350 | 25 266 101 515 652 1097 474 124 105 . 388 961 819 350 10 172 291 Entered New Map 1251 | . . 37 41 174 427 . 47 . . . 7 415 66 . . 37 Time Decay 4239 | 25 266 64 414 398 500 334 77 105 . 388 574 404 284 10 172 224 Search Patrol Dispatched 300 | . . . . . . 100 . . . . 200 . . . . . Lost Part 220 | . . . 60 80 . 20 . . . . 30 . . . . 30 Lost Ally 40 | . . . . . 20 20 . . . . . . . . . . Purge Threat 300 | . . . . . 150 . . . . . 150 . . . . . Squads Dispatched 30 | . 3 . 4 8 . 1 . . . . 9 . . . . 5 Investigation 4 | . 1 . 2 1 . . . . . . . . . . . . Extermination 4 | . . . . . . 1 . . . . 2 . . . . 1 Reinforcement 13 | . 2 . 2 2 . . . . . . 5 . . . . 2 Assault 5 | . . . . 1 . . . . . . 2 . . . . 2 Garrison 4 | . . . . 4 . . . . . . . . . . . . Intercept . | . . . . . . . . . . . . . . . . . Searches Triggered 3 | . . . . . . 1 . . . . 2 . . . . . Data Miner Redirects 1 | . . . . . . . . . . . 1 . . . . . Construction Impeded 1 | . . . . 1 . . . . . . . . . . . . Haulers Reinforced 3 | . . . . . . . . . . . 3 . . . . . Active Scanning Responses . | . . . . . . . . . . . . . . . . . Cargo Convoy Interrupts . | . . . . . . . . . . . . . . . . . Stealth | -11 -10 -10 -8 -8 -8 -6 -6 -6 -6 -5 -5 -5 -5 -5 -4 -4 --------- Run | Yrd Mat Sub Mat Sto Rec Fac Low Low Dat Pro Fac Upp Upp Zhi Pro Fac Distress Signals 11 | . 1 . 3 5 . . . . . . 2 . . . . . Communications Jammed . | . . . . . . . . . . . . . . . . . Distress Signals . | . . . . . . . . . . . . . . . . . Times Spotted 244 | . 13 23 38 37 7 6 1 11 . 20 54 2 . . 12 20 Peak Tracking Total 13 | . 4 6 4 7 1 4 1 5 . 4 7 1 . . 6 13 Tactical Retreats 12 | . 1 1 . . . . . 4 . . 5 1 . . . . Traps | -11 -10 -10 -8 -8 -8 -6 -6 -6 -6 -5 -5 -5 -5 -5 -4 -4 ------- Run | Yrd Mat Sub Mat Sto Rec Fac Low Low Dat Pro Fac Upp Upp Zhi Pro Fac Traps Triggered 7 | . 1 2 1 2 . . . . . . . . . . . 1 Indirectly . | . . . . . . . . . . . . . . . . . Trap Hack Attempts . | . . . . . . . . . . . . . . . . . Triggered . | . . . . . . . . . . . . . . . . . Disarmed . | . . . . . . . . . . . . . . . . . Reprogrammed . | . . . . . . . . . . . . . . . . . Reused 1 | . . 1 . . . . . . . . . . . . . . Traps Extracted . | . . . . . . . . . . . . . . . . . Installed 1 | . . 1 . . . . . . . . . . . . . . Triggered . | . . . . . . . . . . . . . . . . . Most Traps Carried 6 | . . 1 1 . . . . . . . . . 6 6 6 6 Machines | -11 -10 -10 -8 -8 -8 -6 -6 -6 -6 -5 -5 -5 -5 -5 -4 -4 ---------- Run | Yrd Mat Sub Mat Sto Rec Fac Low Low Dat Pro Fac Upp Upp Zhi Pro Fac Machines Disabled 34 | . . 1 1 7 . 2 . . . . 17 . . . . 6 Max in Single Turn 5 | . . 1 1 1 . 1 . . . . 4 . . . . 5 Garrison Access 1 | . . . . . . . . . . . . . . . . 1 Machines Repaired . | . . . . . . . . . . . . . . . . . Machines Dismantled . | . . . . . . . . . . . . . . . . . Machines Sabotaged . | . . . . . . . . . . . . . . . . . Overloaded Fab Kills . | . . . . . . . . . . . . . . . . . Hacking | -11 -10 -10 -8 -8 -8 -6 -6 -6 -6 -5 -5 -5 -5 -5 -4 -4 --------- Run | Yrd Mat Sub Mat Sto Rec Fac Low Low Dat Pro Fac Upp Upp Zhi Pro Fac Machines Accessed 51 | . 2 1 3 5 14 4 2 2 4 . 6 1 . 4 . 3 Terminals 20 | . 2 . 1 5 5 1 . . . . 4 . . . . 2 Fabricators 2 | . . . . . . 1 . . . . . . . . . 1 Repair Stations . | . . . . . . . . . . . . . . . . . Recycling Units 11 | . . . . . 8 1 . . . . 2 . . . . . Scanalyzers 3 | . . . 2 . . 1 . . . . . . . . . . Garrison Access . | . . . . . . . . . . . . . . . . . Total Hacks 148 | . 3 9 9 11 31 7 4 5 32 . 13 1 . 17 . 6 Successful 120 | . 2 9 8 4 26 5 4 5 32 . 6 1 . 17 . 1 Failed 28 | . 1 . 1 7 5 2 . . . . 7 . . . . 5 Catastrophic 4 | . 1 . . 1 . . . . . . 1 . . . . 1 Database Lockouts . | . . . . . . . . . . . . . . . . . Manual 25 | . 1 . . 5 16 1 . . . . 2 . . . . . Terminals 41 | . 3 . 1 11 10 2 . . . . 11 . . . . 3 Fabricators 4 | . . . . . . 1 . . . . . . . . . 3 Repair Stations . | . . . . . . . . . . . . . . . . . Recycling Units 24 | . . . . . 19 3 . . . . 2 . . . . . Scanalyzers 9 | . . . 8 . . 1 . . . . . . . . . . Garrison Access . | . . . . . . . . . . . . . . . . . Terminal Hacks 85 | . 2 9 1 4 4 1 4 5 32 . 4 1 . 17 . 1 Record 31 | . . 8 . . . . 3 4 11 . . . . 5 . . Part Schematic 17 | . . . . . . . . . 13 . . . . 4 . . Robot Schematic 5 | . . . . . . . . . 5 . . . . . . . Robot Analysis 4 | . . . . . . . . . . . . . . 4 . . Prototype ID Bank 7 | . . . . . . . . . 3 . . . . 4 . . Open Door 5 | . . . . 2 . . 1 1 . . . 1 . . . . Alert Level 1 | . . . . . 1 . . . . . . . . . . . Unreport Threat 2 | . . . . . 1 . . . . . 1 . . . . . Locate Traps 4 | . 1 . . . . 1 . . . . 2 . . . . . Hauler Manifests 1 | . . . . 1 . . . . . . . . . . . . Registered Components 2 | . . . . . . . . . . . 1 . . . . 1 Zone Layout 3 | . 1 . 1 1 . . . . . . . . . . . . Proto ID Catalog 1 | . . 1 . . . . . . . . . . . . . . Release Object 2 | . . . . . 2 . . . . . . . . . . . Fabricator Hacks 1 | . . . . . . 1 . . . . . . . . . . Network Status 1 | . . . . . . 1 . . . . . . . . . . Repair Station Hacks . | . . . . . . . . . . . . . . . . . Recycling Unit Hacks 14 | . . . . . 10 2 . . . . 2 . . . . . Report Inventory 8 | . . . . . 5 1 . . . . 2 . . . . . Retrieve Components 6 | . . . . . 5 1 . . . . . . . . . . Scanalyzer 8 | . . . 7 . . 1 . . . . . . . . . . Insert Component 2 | . . . 2 . . . . . . . . . . . . . Analyze 2 | . . . 2 . . . . . . . . . . . . . Retrieve Study 4 | . . . 3 . . 1 . . . . . . . . . . Garrison Access Hacks . | . . . . . . . . . . . . . . . . . Unauthorized Hacks 12 | . . . . . 12 . . . . . . . . . . . Terminals 4 | . . . . . 4 . . . . . . . . . . . Botnet 1 | . . . . . 1 . . . . . . . . . . . Skim 3 | . . . . . 3 . . . . . . . . . . . Fabricators . | . . . . . . . . . . . . . . . . . Repair Stations . | . . . . . . . . . . . . . . . . . Recycling Units 8 | . . . . . 8 . . . . . . . . . . . Tunnel 8 | . . . . . 8 . . . . . . . . . . . Scanalyzers . | . . . . . . . . . . . . . . . . . Garrison Access . | . . . . . . . . . . . . . . . . . Data Cores Recovered . | . . . . . . . . . . . . . . . . . Used . | . . . . . . . . . . . . . . . . . Hacking Detections 25 | . 1 . 1 4 8 3 . . . . 5 . . . . 3 Full Trace Events 1 | . . . 1 . . . . . . . . . . . . . Feedback Events . | . . . . . . . . . . . . . . . . . Feedback Blocked . | . . . . . . . . . . . . . . . . . Robot Schematics Acquired 5 | . . . . . . . . . 5 . . . . . . . Robots Built . | . . . . . . . . . . . . . . . . . Authchips . | . . . . . . . . . . . . . . . . . Time . | . . . . . . . . . . . . . . . . . Total Robot Build Rating . | . . . . . . . . . . . . . . . . . Part Schematics Acquired 18 | . . . 1 . . . . . 13 . . . . 4 . . Parts Built . | . . . . . . . . . . . . . . . . . Authchips . | . . . . . . . . . . . . . . . . . Time . | . . . . . . . . . . . . . . . . . Total Part Build Rating . | . . . . . . . . . . . . . . . . . Part Studies Acquired 4 | . . . 3 . . 1 . . . . . . . . . . Parts Repaired . | . . . . . . . . . . . . . . . . . Time . | . . . . . . . . . . . . . . . . . Parts Recycled . | . . . . . . . . . . . . . . . . . Recycled Matter . | . . . . . . . . . . . . . . . . . Retrieved Matter . | . . . . . . . . . . . . . . . . . Retrieved Components 27 | . . . . . 26 1 . . . . . . . . . . Parts Scanalyzed 2 | . . . 2 . . . . . . . . . . . . . Part Schematics Acquired 1 | . . . 1 . . . . . . . . . . . . . Parts Damaged . | . . . . . . . . . . . . . . . . . Bothacking | -11 -10 -10 -8 -8 -8 -6 -6 -6 -6 -5 -5 -5 -5 -5 -4 -4 ------------ Run | Yrd Mat Sub Mat Sto Rec Fac Low Low Dat Pro Fac Upp Upp Zhi Pro Fac Used RIF Installer . | . . . . . . . . . . . . . . . . . Robots Hacked . | . . . . . . . . . . . . . . . . . Non-combat . | . . . . . . . . . . . . . . . . . Combat . | . . . . . . . . . . . . . . . . . Robot Hacks Applied . | . . . . . . . . . . . . . . . . . Relay Couplers Released . | . . . . . . . . . . . . . . . . . Fabnet Peak Effective % . | . . . . . . . . . . . . . . . . . Robots Rewired 4 | . . . . . 4 . . . . . . . . . . . Allies Hacked . | . . . . . . . . . . . . . . . . . Hacks Repelled . | . . . . . . . . . . . . . . . . . Allies | -11 -10 -10 -8 -8 -8 -6 -6 -6 -6 -5 -5 -5 -5 -5 -4 -4 -------- Run | Yrd Mat Sub Mat Sto Rec Fac Low Low Dat Pro Fac Upp Upp Zhi Pro Fac Total Allies 4 | . . . . . 4 . . . . . . . . . . . Largest Group 4 | . . . . . 4 3 . . . . . . . . . . Highest-Rated Group 52 | . . . . . 52 47 . . . . . . . . . . Highest-Rated Ally 16 | . . . . . 16 16 . . . . . . . . . . Total Orders . | . . . . . . . . . . . . . . . . . Ally Attacks 22 | . . . . . 17 5 . . . . . . . . . . Total Damage 272 | . . . . . 183 89 . . . . . . . . . . Kills 2 | . . . . . 1 1 . . . . . . . . . . Allies Corrupted . | . . . . . . . . . . . . . . . . . Allies Melted . | . . . . . . . . . . . . . . . . . Intel | -11 -10 -10 -8 -8 -8 -6 -6 -6 -6 -5 -5 -5 -5 -5 -4 -4 ------- Run | Yrd Mat Sub Mat Sto Rec Fac Low Low Dat Pro Fac Upp Upp Zhi Pro Fac Active Infowar (turns) 13910 | 24 714 2771 862 574 742 582 989 889 171 874 1428 972 870 275 471 702 Sensors 7384 | . . . . . . 279 989 735 171 810 1111 971 870 275 471 702 Terrain 3677 | . . . . . . 246 . 154 . 64 317 854 850 193 319 680 Seismic 5744 | 24 714 2771 862 574 742 57 . . . . . . . . . . Jamming 549 | . . . . . . . . . . . . . . . . 549 Robot Analysis Total 4 | . . . . . . . . . . . . . . 4 . . Derelict Logs Recovered 9 | . . 1 . . . . 2 1 . 1 . 1 1 . 2 . Drone Launches . | . . . . . . . . . . . . . . . . . Drone Recoveries . | . . . . . . . . . . . . . . . . . Exploration | -11 -10 -10 -8 -8 -8 -6 -6 -6 -6 -5 -5 -5 -5 -5 -4 -4 ------------- Run | Yrd Mat Sub Mat Sto Rec Fac Low Low Dat Pro Fac Upp Upp Zhi Pro Fac Turns Passed 18274 | 184 896 3514 1545 943 2088 751 997 1064 171 1051 1740 972 870 275 471 742 Spaces Moved 10112 | 84 437 1767 518 370 1172 482 765 770 77 679 943 585 552 179 289 443 Core 40 | 2 . . . . . . . . . . . . . . . 38 Treads 3067 | 82 437 792 518 370 740 . 128 . . . . . . . . . Legs 5935 | . . . . . 432 482 637 770 77 679 848 585 552 179 289 405 Wheels 975 | . . 975 . . . . . . . . . . . . . . Hover 95 | . . . . . . . . . . . 95 . . . . . Flight . | . . . . . . . . . . . . . . . . . Fastest Speed 50 | 50 160 120 145 157 130 118 117 118 119 119 86 131 131 131 131 50 Average Speed 141 | 157 160 154 215 177 166 125 117 118 119 119 110 131 131 131 131 124 Slowest Speed 260 | 160 160 260 250 237 243 130 118 119 119 119 192 136 131 131 131 136 Overloaded Moves . | . . . . . . . . . . . . . . . . . Propulsion Burnouts . | . . . . . . . . . . . . . . . . . Robots Hopped . | . . . . . . . . . . . . . . . . . Potential Cave-ins 2 | . . . . . . . . . . . 2 . . . . . Cave-ins Triggered . | . . . . . . . . . . . . . . . . . Teleports 1 | . . . . . . . . . . . . . . . . 1 Exploration Rate (%) 57 | 4 73 86 39 78 97 10 79 70 68 85 19 65 86 60 53 12 Regions Visited 16 Branch Regions 11 Pre-discovered Areas 16 | . . . . . 8 . 1 1 1 . . 1 . 3 1 . Known Exits Taken 13 | . . . 1 1 1 1 1 1 1 1 1 1 1 1 1 . Unknown Exits Taken 3 | 1 1 1 . . . . . . . . . . . . . . Scrap Searched 25 | . . 11 . . . . 3 2 . 2 . . 3 . 4 . Spaces Dug 57 | . 1 2 4 2 1 2 4 3 . . 16 9 5 . 4 4 Terrain Destroyed 494 | . 13 40 45 92 1 2 4 3 . 45 139 13 5 . 30 62 Melee 41 | . . . . 2 1 2 4 3 . . 13 9 3 . . 4 Projectile 37 | . 1 3 10 . . . . . . 3 11 3 2 . 4 . AOE 409 | . 12 37 35 90 . . . . . 42 109 . . . 26 58 Terrain Rammed . | . . . . . . . . . . . . . . . . . Walls Destroyed . | . . . . . . . . . . . . . . . . . Machines Disabled . | . . . . . . . . . . . . . . . . . Actions | -11 -10 -10 -8 -8 -8 -6 -6 -6 -6 -5 -5 -5 -5 -5 -4 -4 --------- Run | Yrd Mat Sub Mat Sto Rec Fac Low Low Dat Pro Fac Upp Upp Zhi Pro Fac Total 12942 | 113 570 2302 783 548 1287 587 835 912 156 859 1399 755 686 210 343 597 Wait 1557 | . 69 345 84 43 21 37 37 124 78 124 229 129 116 2 23 96 Move 10096 | 83 436 1766 517 369 1171 481 764 769 76 678 942 584 551 178 288 443 Hop . | . . . . . . . . . . . . . . . . . Pick Up 119 | 3 9 20 22 11 9 7 4 4 . 3 16 2 3 2 1 3 Fast Attach 70 | 7 2 2 15 4 2 4 4 2 1 . 12 . 2 9 . 4 Attach 58 | . . 8 9 9 1 11 1 . . 1 5 4 . . . 9 Detach 21 | . . . 3 2 2 6 1 . . . 3 2 . 1 . 1 Swap 171 | 3 8 32 9 10 2 8 2 6 . 21 43 8 3 2 6 8 Drop 142 | . 7 15 30 5 15 5 7 4 1 4 28 3 2 10 1 5 Fire 581 | 17 39 113 94 87 25 19 . . . 28 102 14 5 . 24 14 Melee 80 | . . . . 7 2 9 15 3 . . 19 9 4 6 . 6 Ram 3 | . . . . . . . . . . . . . . . . 3 Kick . | . . . . . . . . . . . . . . . . . Crush 1 | . . . . 1 . . . . . . . . . . . . Escape Stasis 5 | . . . . . . . . . . . . . . . . 5 Rewire 37 | . . . . . 37 . . . . . . . . . . . Trap 1 | . . 1 . . . . . . . . . . . . . . Miscellaneous . | . . . . . . . . . . . . . . . . . Route ------- -11/Scrapyard -10/Materials (discovered 4 exits: [*Mat x2] / [*Min] / *Sub) -10/Subcaves (discovered 3 exits: *Mat x2 / *Rec) -8/Materials (discovered 2 exits: *Fac / *Sto) -8/Storage (discovered 2 exits: *Fac / *Rec) -8/Recycling -6/Factory -6/Lower Caves -6/Lower Caves -6/Data Miner -5/Proximity Caves -5/Factory (discovered 4 exits: Fac x2 / *Upp x2) -5/Upper Caves -5/Upper Caves (discovered 2 exits: *Fac / *Zhi) -5/Zhirov -4/Proximity Caves -4/Factory History --------- Turn | Location | Event 9 | -11/Scrapyard | Discovered new exit (range 15) 185 | -11/Scrapyard | Entered Materials 234 | -10/Materials | Discovered new exit (range 7) 317 | -10/Materials | Build established: Mutant 483 | -10/Materials | Discovered new exit (range 7) 592 | -10/Materials | Discovered new exit (range 15) 1074 | -10/Materials | Discovered new exit (range 5) 1081 | -10/Materials | Entered Subcaves 1082 | -10/Subcaves | Approached by a straggling Scientist 1091 | -10/Subcaves | Discovered new exit (range 13) 1461 | -10/Subcaves | A swath of the cavern ceiling suddenly collapsed 1807 | -10/Subcaves | Shifting Twisted Machinery released Flamer 1874 | -10/Subcaves | Shifting Twisted Machinery released Sub. Shrapnel Launcher 2077 | -10/Subcaves | Shifting Twisted Machinery released Sub. Monowheel 2078 | -10/Subcaves | Shifting Twisted Machinery released Mak. Light Armor Plating 2834 | -10/Subcaves | Visited 4L-MR0's lab 2902 | -10/Subcaves | Found Tower Shield 3120 | -10/Subcaves | A swath of the cavern ceiling suddenly collapsed 3465 | -10/Subcaves | Discovered new exit (range 15) 3692 | -10/Subcaves | Curiously followed by a Cobbler waking with a query about "LVR3C" 3737 | -10/Subcaves | Build established: Scavenger-Mutant 3780 | -10/Subcaves | Shifting Twisted Machinery released Shrapnel Trap 3784 | -10/Subcaves | Shifting Twisted Machinery released Battle Cannon 4460 | -10/Subcaves | Discovered new exit (range 12) 4464 | -10/Subcaves | Core integrity fell below 50% 4543 | -10/Subcaves | Build established: Mutant 4595 | -10/Subcaves | Entered Materials 4595 | -8/Materials | Evolved 4 slots: Utility x3, Weapon x1 4912 | -8/Materials | Build established: Scavenger-Tank 5119 | -8/Materials | Discovered new exit (range 10) 5176 | -8/Materials | Attached Tower Shield, gained temporary slots: Power, Propulsion x2, Utility x2, Weapon x2 5709 | -8/Materials | Identified exit to Factory 5834 | -8/Materials | Build established: Tank 5871 | -8/Materials | Discovered new exit (range 13) 6130 | -8/Materials | Identified exit to Storage 6140 | -8/Materials | Entered Storage 6387 | -8/Storage | Garrison activated, responded to threat 6472 | -8/Storage | Core integrity fell below 50% 6488 | -8/Storage | Destroyed 7 combat bots 6499 | -8/Storage | Lost 7 parts (2n4u1w) 6540 | -8/Storage | First assault squad dispatched 6655 | -8/Storage | Discovered exit to Factory (range 5) 6998 | -8/Storage | Garrison activated, responded to threat 7078 | -8/Storage | Used back door to open Recycling access 7078 | -8/Storage | Discovered new exit (range 4) 7082 | -8/Storage | Identified exit to Recycling 7083 | -8/Storage | Entered Recycling 7381 | -8/Recycling | Discovered new exit (range 7) 7522 | -8/Recycling | Build established: Commander-Gunner 7821 | -8/Recycling | Entered Scraplab 7828 | -8/Recycling | Found Prototype Device 7828 | -8/Recycling | Identified Scrap Engine 8097 | -8/Recycling | Build established: Mutant 8892 | -8/Recycling | Build established: Construct 9166 | -8/Recycling | Identified exit to Factory 9171 | -8/Recycling | Entered Factory 9171 | -6/Factory | Accompanied by 3 allies 9171 | -6/Factory | Evolved 4 slots: Propulsion x2, Utility x2 9521 | -6/Factory | Search patrols dispatched 9629 | -6/Factory | Discovered new exit (range 16) 9647 | -6/Factory | Identified exit to Lower Caves 9890 | -6/Factory | Build established: Mutant 9922 | -6/Factory | Entered Lower Caves 9923 | -6/Lower Caves | Encountered a Warlord checkpoint 10152 | -6/Lower Caves | Learned 8 Factory zone layouts 10192 | -6/Lower Caves | Entered an active Warlord outpost 10273 | -6/Lower Caves | Attacked by a delusional Derelict stockpiling parts 10542 | -6/Lower Caves | Found DCF Scrap (14 items) 10617 | -6/Lower Caves | Discovered new exit (range 9) 10683 | -6/Lower Caves | Found Alien Artifact 10683 | -6/Lower Caves | Identified Core Expander 10683 | -6/Lower Caves | Installed Core Expander, added new Propulsion slot 10901 | -6/Lower Caves | Identified exit to Lower Caves 10919 | -6/Lower Caves | Entered another Lower Caves area 11020 | -6/Lower Caves | Entered an active Warlord outpost 11032 | -6/Lower Caves | Learned Factory emergency access door positions 11032 | -6/Lower Caves | Learned Extension security intel 11032 | -6/Lower Caves | Learned Research garrison access intel 11925 | -6/Lower Caves | Discovered new exit (range 16) 11941 | -6/Lower Caves | Identified exit to Data Miner 11983 | -6/Lower Caves | Entered Data Miner 11983 | -6/Data Miner | Discovered new exit (range 6) 12006 | -6/Data Miner | Met Data Miner 12029 | -6/Data Miner | Learned location of Section 7 (-2) 12029 | -6/Data Miner | Acquired the access code to Warlord's prototype stash 12127 | -6/Data Miner | Received God Mode back door access code from Data Miner 12153 | -6/Data Miner | Identified exit to Proximity Caves 12154 | -6/Data Miner | Entered Proximity Caves 12243 | -5/Proximity Caves | Attracted the attention of an 0b10 checkpoint 12427 | -5/Proximity Caves | Learned Factory interactive machine intel 12532 | -5/Proximity Caves | Spotter reported a threat 12555 | -5/Proximity Caves | Spotted B-75 Beast 12646 | -5/Proximity Caves | Build established: Skirmisher 12795 | -5/Proximity Caves | Spotter reported a threat 12875 | -5/Proximity Caves | Spotter reported a threat 13155 | -5/Proximity Caves | Discovered new exit (range 11) 13203 | -5/Proximity Caves | Identified exit to Factory 13205 | -5/Proximity Caves | Entered Factory 13205 | -5/Factory | Evolved 2 slots: Power x1, Utility x1 13206 | -5/Factory | Identified exit to Upper Caves 13207 | -5/Factory | Identified exit to Factory 13209 | -5/Factory | Loaded intel: 54 interactive machine locations 13505 | -5/Factory | Search patrols dispatched 13805 | -5/Factory | Search patrols dispatched 14705 | -5/Factory | First assault squad dispatched 14723 | -5/Factory | Incoming assault squad redirected 14867 | -5/Factory | Discovered exit to Upper Caves (range 11) 14903 | -5/Factory | Destroyed 7 combat bots 14945 | -5/Factory | Entered Upper Caves 15187 | -5/Upper Caves | Attracted the attention of an 0b10 checkpoint 15633 | -5/Upper Caves | Build established: Assassin 15676 | -5/Upper Caves | Discovered new exit (range 14) 15888 | -5/Upper Caves | Identified exit to Upper Caves 15917 | -5/Upper Caves | Entered another Upper Caves area 15918 | -5/Upper Caves | Encountered a Warlord checkpoint 16021 | -5/Upper Caves | Build established: Skirmisher 16023 | -5/Upper Caves | Discovered exit to Factory (range 9) 16548 | -5/Upper Caves | Build established: Derelict-Assassin 16768 | -5/Upper Caves | Discovered new exit (range 7) 16778 | -5/Upper Caves | Identified exit to Zhirov 16787 | -5/Upper Caves | Entered Zhirov 16788 | -5/Zhirov | Discovered new exit (range 3) 16812 | -5/Zhirov | Met Zhirov 16838 | -5/Zhirov | Learned location of Quarantine (-3) 16838 | -5/Zhirov | Learned location of Command (-1) 16850 | -5/Zhirov | Zhirov requested help retrieving the SGEMP Prototype 16871 | -5/Zhirov | Found Alien Artifact 16871 | -5/Zhirov | Identified Integrated Reactor 16871 | -5/Zhirov | Installed Integrated Reactor, increased core energy generation (+10) 17000 | -5/Zhirov | Found Alien Artifact 17057 | -5/Zhirov | Identified exit to Proximity Caves 17062 | -5/Zhirov | Entered Proximity Caves 17135 | -4/Proximity Caves | Learned 4 Research zone layouts 17204 | -4/Proximity Caves | Destroyed 10 combat bots 17330 | -4/Proximity Caves | Discovered exit to Factory (range 13) 17356 | -4/Proximity Caves | Build established: Skirmisher 17533 | -4/Proximity Caves | Entered Factory 17533 | -4/Factory | Evolved 2 slots: Utility x1, Weapon x1 17918 | -4/Factory | Build established: Derelict-Assassin 18112 | -4/Factory | Identified Transdimensional Reconstructor 18112 | -4/Factory | Warped through subspace 18217 | -4/Factory | System corruption reached 10% 18249 | -4/Factory | Released all parts (7) 18254 | -4/Factory | Core integrity fell below 50% 18274 | -4/Factory | Lost 8 parts (2p4u2w) 18274 | -4/Factory | Core integrity fell below 20% 18275 | -4/Factory | Destroyed by G-67 Veteran with Field Laser Last Messages --------------- 18249_ Released Ballistic Neutralizer Construct/C. 18249_ Released Lgt. Angular Momentum Engine. 18249_ Released Imp. KE Penetrator. 18249_ Extracted 295 matter. 18251_ Slammed into P-70 Sage. 18251_ Destabilizing: System corrupted (+2). 18252_ System corrupted: Energy discharge (-29). 18255_ Slammed into C-35 Carver. 18256_ U-05 Engineer builds a Wall. 18272_ Phasing Sabre severed. 18272_ Acquired Phasing Sabre. 18273_ Nuclear Reactor explodes. 18273_ C-35 Carver destroyed. 18273_ Nuclear Reactor explodes. 18273_ Destroyed Imp. Surge Thruster. 18273_ C-35 Carver destroyed. 18273_ P-70 Sage destroyed. 18273_ Nuclear Reactor explodes. 18273_ Destroyed Hpw. Shock Rifle. 18273_ Terminal disabled. Map ----- +----------------------------------------------------+ | | | | | | | | | | | | | | | | | | | | | | | | | | | | | ?????????????????????????##??####????######????### | | ????????????????????????? ?? ?### ###?????? | | ????????????????????????# ?? ""?# ############# | | ????????????????????????# "" ## """" # | | ????????????????????????# """ T" ## ""F" # | | ???????????????????????## """ "" ## "" # | | ???????????????????????# """ " ## # | | ???????????#?????????### ## # | | ????????? ###??# # # | | ????????? # # # | | ????????? ggg= # # | | ???????????"" # @ # # | | ???????????"" ??????## p # # | | ?????????????????????# # + | | ?????????????????????## # % # | | ?????????????????????? ###########+### | | ????????????????????? # | | ????????????????? | | ????????????????? | | ????????????????? | | ?????????????????? !! """ """ | | ????????????????? !! """ """ | | ????????????????# """ """ | | ????????????????# """ | | ?????????????????? == | | ????????????????????? | | ??????????????????????? | | ??????????????????????? | | ??????????????????????? ################ | | ???????????????????????? #??????????##??# | | ????????????????????????? ???????????##### | | ???????????????????????????? ????????????#?## | | ?????????????????????????????? ???????????#??## | | ???????????????????????????????????????????????### | | ?????????????????????????????????????????????#?##? | | ????????????????????????????????????????????????#? | +----------------------------------------------------+ Best States ------------- Heat Dissipation 57 Coolant Potential 65 Energy Generation 38 Energy Capacity 530 Matter Stores 300 Matter Capacity 600 Sight Range 16 Robot Scan Range 15 Terrain Scan Range 16 Terrain Scan Density 135 Jamming Range 12 Armor Coverage 2225 Evasion (%) 65 Targeting Accuracy 8 Recoil Reduction 4 Offensive Hacking 12 Trap Extractor Capacity 6 Item Schematics ----------------- Imp. VTOL Module | -8/Materials | Scanalyzed Combat Drone Bay | -6/Data Miner | Free Lgt. Regenerative Plating | -6/Data Miner | Free Enh. Flexi-carbon Leg | -6/Data Miner | Free Prc. Energy Filter | -6/Data Miner | Free Enh. Coil Gun | -6/Data Miner | Free Myomer Leg | -6/Data Miner | Free Imp. System Guard | -6/Data Miner | Free Hvy. Gauss Cannon | -6/Data Miner | Free Imp. Focal Shield | -6/Data Miner | Free Hyp. Mass Driver | -6/Data Miner | Free Imp. Phase Shifter | -6/Data Miner | Free Lgt. Particle Reactor | -6/Data Miner | Free Adv. Component Analysis Suite | -6/Data Miner | Free Assault Drone Bay | -5/Zhirov | Free Exp. Heat Sink | -5/Zhirov | Free Exp. Optical Array | -5/Zhirov | Free Imp. Arc Thrower | -5/Zhirov | Free Robot Schematics ------------------ M-22 Extractor | -6/Data Miner | Free R-10 Processor | -6/Data Miner | Free A-15 Conveyor | -6/Data Miner | Free O-32 Director | -6/Data Miner | Free G-67 Veteran | -6/Data Miner | Free Fabricated ------------ Nothing Repaired ---------- Nothing Studied --------- Lgt. Treads | -8/Materials | Hacked Flight Unit | -8/Materials | Hacked Lgt. Nuclear Core | -8/Materials | Hacked Hammer | -6/Factory | Hacked Alien Tech Used ----------------- Core Expander Integrated Reactor Transdimensional Reconstructor Achievements -------------- None Challenges ------------ None Game ------ Seed BlinkHypercooledFocus Manual? 0 Play Time 02:42:13 Cumulative 567.7 hours Start 2026.08.08 @ 15:16:00 End 2026.08.10 @ 22:41:26 Sessions 7 Manual Loads 0 Difficulty Rogue Special Mode None Game No. 198 Rogue 177 Adventurer 21 Explorer 0 Win Type - Total 29 Types 17/1/6/1/0/0/0/3/0/1 Lore% 70 Gallery% 76 Achievement% 69 Wizard Run 0 Options --------- Layout 1 ASCII 0 Keyboard 0 Movement Mouse Keybinds 0 Fullscreen 2 Font 32/SmallcapsGlow Map View 77x35 Zoom Use 0% Tactical HUD 1 Map Filters NONE Filters NONE Steam 1 RUN: 51626ff2-1dc6-47be-abca-f52cd989b01a